bitfinex/quotes_SOLUSD_20220210
["timestamp","ask_amount","ask_price","bid_price","bid_amount"]
[1644525795861,6.86717803,108.87,108.79,13.811]
[1644525796059,4.594,108.86,108.79,13.787]
[1644525796668,4.594,108.86,108.78,0.024]
[1644525796669,12.82522154,108.86,108.78,0.024]
[1644525796860,37.98174105,108.85,108.77,0.024]
[1644525797061,18.3889,108.84,108.77,0.024]
[1644525797261,9.8324028,108.83,108.76,39.07996697]
[1644525797460,4.595,108.82,108.76,39.10396697]
[1644525797661,4.595,108.82,108.74,0.024]
[1644525798664,37.98174105,108.81,108.74,42.44960461]
[1644525798864,37.98174105,108.81,108.74,56.24400461]
[1644525799064,13.7947,108.83,108.74,56.24400461]
[1644525799466,4.596,108.85,108.74,56.24400461]
[1644525799664,4.596,108.85,108.74,56.49400461]
[1644525800066,40.19602952,108.84,108.74,56.49400461]
[1644525800265,40.19602952,108.84,108.74,56.24400461]
[1644525800266,4.596,108.83,108.74,56.24400461]
[1644525800466,7.61811433,108.82,108.74,56.24400461]
[1644525801868,4.596,108.85,108.74,56.24400461]
[1644525802070,4.596,108.85,108.74,63.73100461]
[1644525802267,4.596,108.85,108.78,13.7878]
[1644525802467,49.0659,108.86,108.78,23.6978]
[1644525802969,93.09767371,108.86,108.79,35.5610277]
[1644525803371,93.09767371,108.86,108.79,13.7885]
[1644525803570,6.82522154,108.85,108.77,0.024]
[1644525803768,4.594,108.85,108.75,10.814]
[1644525804267,3.78237014,108.84,108.76,41.69444364]
[1644525804467,4.594,108.85,108.76,55.50974364]
[1644525804668,4.594,108.85,108.76,55.48574364]
[1644525804968,4.594,108.85,108.76,55.50974364]
[1644525805168,49.0659,108.86,108.76,66.29974364]
[1644525805367,4.595,108.85,108.76,66.29974364]
[1644525805569,43.91642917,108.84,108.76,66.29974364]
[1644525805867,43.91642917,108.84,108.76,66.27574364]
[1644525806072,43.91642917,108.84,108.76,66.52574364]
[1644525806274,4.595,108.85,108.76,66.52574364]
[1644525806469,49.0659,108.86,108.76,66.54974364]
[1644525807371,88.22953692,108.86,108.76,66.54974364]
[1644525807571,94.22953692,108.86,108.76,66.54974364]
[1644525808175,4.595,108.85,108.76,66.54974364]
[1644525808372,8.65050693,108.84,108.76,66.29974364]
[1644525808573,8.65050693,108.84,108.76,66.52574364]
[1644525808975,55.0659,108.86,108.76,66.52574364]
[1644525809272,55.0659,108.86,108.76,66.29974364]
[1644525809477,6.0,108.86,108.76,66.29974364]
[1644525809676,6.0,108.86,108.76,73.62674364]
[1644525810073,34.80029437,108.87,108.76,79.62674364]
[1644525810275,4.594,108.86,108.76,79.87674364]
[1644525810477,13.01384948,108.85,108.76,73.87674364]
[1644525810674,13.01384948,108.85,108.76,66.54974364]
[1644525810876,13.01384948,108.85,108.76,66.29974364]
[1644525811075,4.595,108.84,108.76,66.29974364]
[1644525811279,4.595,108.87,108.76,72.27574364]
[1644525811480,4.595,108.87,108.76,84.10506848]
[1644525811679,49.1669,108.89,108.76,97.35431223]
[1644525811882,1.29353092,108.92,108.77,150.63207775]
[1644525812079,74.45963092,108.93,108.81,13.78]
[1644525812279,37.13929074,108.91,108.82,57.30997294]
[1644525812478,37.13929074,108.91,108.82,10.79]
[1644525812688,38.43282166,108.91,108.82,10.79]
[1644525813082,4.591,108.9,108.83,13.7841]
[1644525813282,5.88453092,108.9,108.81,10.79]
[1644525813483,10.67485311,108.89,108.81,50.91943202]
[1644525813684,11.96838403,108.89,108.79,34.2941]
[1644525813886,6.82422154,108.88,108.79,10.79]
[1644525814084,21.90555246,108.88,108.79,24.5781]
[1644525814284,2.23122154,108.87,108.79,24.6021]
[1644525814485,4.594,108.86,108.79,13.7881]
[1644525814684,37.13929074,108.85,108.77,10.814]
[1644525814885,4.595,108.84,108.77,16.814]
[1644525815086,10.67485311,108.83,108.77,10.814]
[1644525815286,10.67485311,108.83,108.77,10.79]
[1644525815486,10.67485311,108.83,108.76,69.8240897]
[1644525815685,10.67485311,108.83,108.76,46.8693897]
[1644525815887,10.67485311,108.83,108.77,13.7906]
[1644525818291,16.67485311,108.83,108.77,54.01529863]
[1644525818692,16.67485311,108.83,108.77,13.7906]
[1644525818893,6.0,108.83,108.77,13.7906]
[1644525819095,6.0,108.83,108.77,24.8306]
[1644525819292,29.249,108.87,108.77,26.65392484]
[1644525819494,4.594,108.86,108.77,13.8146]
[1644525819694,5.88753092,108.86,108.77,13.8146]
[1644525819894,42.41649567,108.85,108.77,0.024]
[1644525820095,5.88853092,108.84,108.77,0.024]
[1644525820296,5.88853092,108.84,108.74,23.6356]
[1644525820297,5.39764818,108.83,108.74,23.6596]
[1644525820495,4.596,108.82,108.75,0.024]
[1644525820716,4.596,108.82,108.74,23.6356]
[1644525821220,4.596,108.82,108.73,70.9876]
[1644525821518,33.65667782,108.81,108.73,70.9876]
[1644525821720,4.596,108.8,108.75,13.7945]
[1644525822518,33.65667782,108.81,108.75,13.7945]
[1644525822922,33.65667782,108.81,108.76,43.35926966]
[1644525823117,22.7053,108.83,108.76,43.35926966]
[1644525823318,42.4978,108.83,108.77,13.792]
[1644525823717,36.4978,108.83,108.77,13.792]
[1644525823917,22.7053,108.83,108.77,13.792]
[1644525824118,65.42432304,108.83,108.77,13.792]
[1644525824322,4.596,108.84,108.77,13.792]
[1644525824522,4.595,108.85,108.77,13.792]
[1644525824722,4.595,108.85,108.77,24.582]
[1644525824921,4.595,108.85,108.77,26.40532484]
[1644525825424,4.595,108.85,108.78,36.19892463]
[1644525825622,4.595,108.85,108.8,13.7876]
[1644525825825,38.23092087,108.86,108.8,51.19839703]
[1644525826224,44.23092087,108.86,108.8,51.19839703]
[1644525827425,6.0,108.86,108.8,51.19839703]
[1644525827625,48.16403092,108.87,108.8,51.19839703]
[1644525827626,1.29353092,108.87,108.8,51.19839703]
[1644525827828,1.29353092,108.88,108.81,10.79]
[1644525828028,1.29353092,108.9,108.83,13.781]
[1644525828228,1.29353092,108.92,108.84,10.79]
[1644525828427,1.29353092,108.92,108.85,45.9252]
[1644525828627,1.29353092,108.93,108.86,10.79]
[1644525828829,1.29353092,108.93,108.86,20.533]
[1644525829129,1.29353092,108.94,108.86,36.13409996]
[1644525829332,1.29353092,108.95,108.86,42.13409996]
[1644525829536,1.29353092,108.95,108.87,39.46391479]
[1644525829729,1.29353092,108.97,108.89,42.2551966]
[1644525829928,6.0,108.95,108.91,42.5579045]
[1644525830129,1.29353092,108.97,108.91,56.3299045]
[1644525830529,7.29353092,108.97,108.91,56.3299045]
[1644525830731,6.0,108.97,108.91,56.3299045]
[1644525831130,1.29353092,108.98,108.91,56.3299045]
[1644525831531,6.0,108.98,108.91,56.3299045]
[1644525831934,195.27422879,108.99,108.91,56.3299045]
[1644525832132,201.27422879,108.99,108.91,56.3299045]
[1644525832335,157.14353092,108.99,108.91,56.3299045]
[1644525832538,126.70823092,108.99,108.91,56.3299045]
[1644525832739,125.4147,108.99,108.91,56.3299045]
[1644525833136,13.5147,108.99,108.92,10.79]
[1644525833337,13.5147,108.99,108.94,13.7694]
[1644525833537,14.1623591,108.98,108.94,13.7694]
[1644525833937,14.1623591,108.98,108.86,226.6]
[1644525833938,14.1623591,108.98,108.9,10.79]
[1644525834238,4.589,108.97,108.9,10.79]
[1644525834639,33.65178475,108.96,108.9,10.79]
[1644525835740,33.65178475,108.96,108.91,13.7738]
[1644525836543,13.7748,108.98,108.91,13.7738]
[1644525836743,14.80823092,108.99,108.91,13.7738]
[1644525836944,13.5147,108.99,108.91,22.8368]
[1644525837142,19.5147,108.99,108.91,22.8368]
[1644525837343,19.5147,108.99,108.91,33.6268]
[1644525837542,39.39153791,108.98,108.91,68.85713233]
[1644525837746,43.98053791,108.98,108.91,68.85713233]
[1644525837943,43.98053791,108.98,108.91,33.6268]
[1644525838143,43.98053791,108.98,108.91,24.5638]
[1644525838345,43.98053791,108.98,108.9,13.7752]
[1644525838943,43.98053791,108.98,108.9,55.16014614]
[1644525839746,57.75533791,108.98,108.9,55.16014614]
[1644525839943,169.65533791,108.98,108.9,13.7752]
[1644525840945,57.75533791,108.98,108.91,43.38237754]
[1644525841145,39.39153791,108.98,108.91,57.15527754]
[1644525842148,31.877,108.99,108.91,57.15527754]
[1644525842346,27.288,108.99,108.91,57.15527754]
[1644525842548,13.5147,108.99,108.91,57.15527754]
[1644525842748,5.88253092,109.03,108.91,76.0187775]
[1644525842947,24.83863092,109.05,108.92,91.7]
[1644525843149,28.0184,109.07,108.95,13.7656]
[1644525843150,41.83881965,109.04,108.95,13.7656]
[1644525843351,1.29353092,109.06,108.96,56.78272662]
[1644525843654,1.29353092,109.07,108.96,69.93622658]
[1644525843851,437.9284256,109.1,108.97,93.52349996]
[1644525844050,1.29353092,109.11,108.98,10.79]
[1644525844249,1.29353092,109.11,108.99,13.7593]
[1644525844450,1.29353092,109.11,109.0,53.50425264]
[1644525844654,2.89557696,109.1,109.01,45.8505]
[1644525844851,5.87653092,109.12,109.02,45.76295436]
[1644525845052,5.87653092,109.12,109.02,55.05195436]
[1644525845353,5.87653092,109.12,109.02,55.30195436]
[1644525845552,11.87653092,109.12,109.03,13.7552]
[1644525845752,25.63513092,109.12,109.01,10.79]
[1644525846053,1.29353092,109.1,108.98,10.79]
[1644525846251,5.87853092,109.09,108.97,58.0251]
[1644525846452,3.52475246,109.09,108.97,58.0251]
[1644525846651,3.52475246,109.09,108.98,38.80539147]
[1644525846652,39.26358108,109.08,108.98,38.80539147]
[1644525846852,41.49480262,109.08,108.98,52.56829147]
[1644525847055,41.49480262,109.08,108.97,10.79]
[1644525847256,6.81722154,109.07,108.95,10.79]
[1644525847452,56.27835246,109.07,108.94,10.79]
[1644525847752,2.23122154,109.06,108.94,10.79]
[1644525847954,8.55056277,109.05,108.95,46.91064793]
[1644525848757,13.7687,109.04,108.95,46.91064793]
[1644525848956,8.55056277,109.05,108.95,46.91064793]
[1644525849155,8.55056277,109.05,108.94,10.79]
[1644525849357,6.81822154,109.04,108.92,24.4728]
[1644525849558,6.81822154,109.04,108.92,10.79]
[1644525849758,6.81822154,109.04,108.85,159.1205]
[1644525849957,134.0357,109.03,108.89,45.9046]
[1644525850158,43.85158108,109.02,108.9,48.80221869]
[1644525850560,46.08280262,109.02,108.9,49.05221869]
[1644525850758,41.49480262,109.02,108.92,43.66141439]
[1644525850964,120.2664,109.03,108.95,13.7671]
[1644525851161,111.9,109.06,108.95,13.7671]
[1644525851360,4.586,109.05,108.95,24.5571]
[1644525851560,4.586,109.06,108.95,24.8071]
[1644525851759,4.586,109.06,108.95,24.5571]
[1644525851959,39.05249932,109.05,108.96,41.69487367]
[1644525852161,4.586,109.04,108.96,41.69487367]
[1644525852363,8.76164453,109.03,108.96,41.69487367]
[1644525852561,4.586,109.04,108.96,41.69487367]
[1644525852761,13.7672,109.05,108.96,41.69487367]
[1644525853563,41.88394482,109.04,108.96,41.69487367]
[1644525853762,4.587,109.04,108.96,55.45997367]
[1644525853962,4.587,109.06,108.96,55.45997367]
[1644525854693,38.24853353,109.05,108.96,55.45997367]
[1644525854889,9.56561032,109.03,108.96,55.45997367]
[1644525855087,9.56561032,109.03,108.94,13.7678]
[1644525855287,4.587,109.02,108.92,10.79]
[1644525855487,6.81822154,109.02,108.91,10.79]
[1644525855689,2.23122154,109.01,108.89,34.5672]
[1644525855887,4.589,109.0,108.89,34.5672]
[1644525856088,4.589,109.0,108.9,35.61363052]
[1644525856888,4.589,109.0,108.89,34.5672]
[1644525856889,4.589,109.0,108.93,44.8882351]
[1644525857088,58.02063353,109.01,108.93,44.8882351]
[1644525857496,61.54538599,109.01,108.89,10.79]
[1644525857705,1.29353092,108.99,108.87,10.79]
[1644525857998,13.7767,108.97,108.88,13.7754]
[1644525858402,23.34231032,108.97,108.89,43.35428835]
[1644525858600,4.59,108.96,108.89,43.35428835]
[1644525859000,34.67621916,108.95,108.89,43.35428835]
[1644525859401,45.26121916,108.95,108.86,13.778]
[1644525859600,4.591,108.94,108.86,13.778]
[1644525859800,4.591,108.94,108.84,46.1415]
[1644525860003,4.591,108.94,108.83,10.79]
[1644525860402,13.13792469,108.93,108.84,45.92782528]
[1644525860603,4.591,108.92,108.82,13.7829]
[1644525860802,4.591,108.92,108.8,10.79]
[1644525861003,16.66267715,108.93,108.81,6.0]
[1644525861204,16.66267715,108.93,108.8,16.79]
[1644525861411,4.591,108.92,108.8,16.79]
[1644525861602,18.3742,108.92,108.81,58.5482948]
[1644525861803,4.591,108.92,108.82,10.79]
[1644525862006,4.591,108.93,108.82,12.61350008]
[1644525862204,50.46163092,108.94,108.82,10.79]
[1644525862404,4.591,108.93,108.82,10.79]
[1644525862606,46.43817334,108.92,108.83,36.65679319]
[1644525862805,4.591,108.93,108.83,36.65679319]
[1644525863206,10.591,108.93,108.83,36.65679319]
[1644525863404,4.591,108.93,108.83,36.65679319]
[1644525863602,10.591,108.93,108.83,36.65679319]
[1644525863804,10.591,108.93,108.84,13.7807]
[1644525864003,6.0,108.93,108.85,45.97504252]
[1644525864204,10.591,108.93,108.85,45.97504252]
[1644525864404,10.09683437,108.93,108.81,6.0]
[1644525864604,27.46183437,108.93,108.81,6.0]
[1644525864804,27.46183437,108.93,108.81,11.04]
[1644525865207,27.46183437,108.93,108.81,17.04]
[1644525865406,27.46183437,108.93,108.82,40.87505713]
[1644525865605,32.10935591,108.93,108.82,13.7831]
[1644525865806,32.10935591,108.93,108.8,10.79]
[1644525866005,43.55335591,108.93,108.8,10.79]
[1644525866305,55.63688683,108.93,108.78,10.79]
[1644525866505,24.5888,108.92,108.79,41.55285564]
[1644525866805,9.50544428,108.88,108.79,41.55285564]
[1644525867609,15.50544428,108.88,108.79,41.55285564]
[1644525868811,4.594,108.87,108.79,55.33975564]
[1644525869010,19.7876,108.88,108.79,55.58975564]
[1644525869011,6.0,108.88,108.79,55.58975564]
[1644525869214,4.594,108.9,108.8,10.79]
[1644525869511,6.0,108.9,108.8,10.79]
[1644525869714,4.593,108.92,108.8,12.86350008]
[1644525869913,48.40741019,108.91,108.81,36.03759735]
[1644525870112,62.19091019,108.91,108.81,46.82759735]
[1644525870317,62.19091019,108.91,108.81,47.07759735]
[1644525871814,62.19091019,108.91,108.81,60.86159735]
[1644525872515,6.0,108.91,108.81,60.86159735]
[1644525872917,4.593,108.92,108.81,60.86159735]
[1644525873316,4.593,108.92,108.81,66.86159735]
[1644525873517,46.18897739,108.92,108.81,66.86159735]
[1644525875217,46.18897739,108.92,108.81,60.86159735]
[1644525875420,46.18897739,108.92,108.81,68.68509743]
[1644525875819,52.18897739,108.92,108.81,68.68509743]
[1644525876020,10.593,108.92,108.81,68.68509743]
[1644525876220,6.0,108.92,108.81,68.68509743]
[1644525876620,4.591,108.93,108.81,68.68509743]
[1644525877021,46.11988564,108.92,108.81,68.68509743]
[1644525877420,46.11988564,108.92,108.81,68.43509743]
[1644525878526,4.591,108.93,108.81,68.43509743]
[1644525878721,4.591,108.93,108.81,68.68509743]
[1644525879624,44.49856321,108.93,108.81,68.68509743]
[1644525879824,39.90756321,108.93,108.81,68.68509743]
[1644525880226,45.90756321,108.93,108.81,82.46159743]
[1644525880845,50.49856321,108.93,108.81,82.46159743]
[1644525881944,45.90756321,108.93,108.81,82.46159743]
[1644525882949,50.49856321,108.93,108.81,82.46159743]
[1644525883850,4.591,108.93,108.81,96.70940521]
[1644525884051,13.876,108.94,108.82,91.7]
[1644525884249,13.876,108.94,108.85,13.7736]
[1644525884449,13.876,108.94,108.86,10.79]
[1644525884852,13.876,108.94,108.87,39.64787843]
[1644525885050,13.876,108.94,108.88,10.79]
[1644525885248,13.876,108.94,108.89,48.2402954]
[1644525885452,13.876,108.94,108.9,13.7739]
[1644525885651,13.876,108.94,108.91,45.56220419]
[1644525885850,6.06439994,108.93,108.91,45.56220419]
[1644525886252,1.29353092,108.98,108.91,45.56220419]
[1644525887351,7.29353092,108.98,108.91,45.56220419]
[1644525887551,1.29353092,108.98,108.91,79.88840419]
[1644525887752,1.29353092,108.98,108.91,80.13840419]
[1644525887951,49.5487,109.0,108.91,80.13840419]
[1644525887952,1.29353092,108.99,108.91,80.13840419]
[1644525888553,48.30686355,108.99,108.91,80.13840419]
[1644525889653,7.29353092,108.99,108.91,80.13840419]
[1644525889853,1.29353092,108.99,108.91,80.13840419]
[1644525890053,1.29353092,108.99,108.91,86.13840419]
[1644525890259,1.32724349,109.0,108.91,80.13840419]
[1644525890454,1.29353092,109.0,108.91,80.13840419]
[1644525891053,1.29353092,109.0,108.91,86.13840419]
[1644525891654,0.03371257,109.01,108.91,86.13840419]
[1644525891655,1.32724349,109.01,108.91,87.96190427]
[1644525891856,0.03371257,109.01,108.91,245.87209052]
[1644525892057,0.03371257,109.01,108.91,259.61634538]
[1644525892253,0.03371257,109.01,108.91,284.46264538]
[1644525892454,38.34011237,109.06,108.91,284.46264538]
[1644525892653,0.03371257,109.01,108.92,134.9]
[1644525892856,0.03371257,109.05,108.94,240.3593]
[1644525893054,0.03371257,109.05,108.95,15.377]
[1644525893256,0.03371257,109.06,108.96,91.7]
[1644525893457,0.03371257,109.05,108.97,15.376]
[1644525893653,1.29353092,109.07,108.97,10.79]
[1644525893654,0.03371257,109.06,108.97,10.79]
[1644525893853,5.87953092,109.06,108.98,13.7584]
[1644525894055,41.43094385,109.06,108.98,73.22656355]
[1644525894453,41.43094385,109.06,108.98,24.5484]
[1644525895154,38.13847477,109.06,108.98,24.5484]
[1644525896158,4.586,109.05,108.96,24.5567]
[1644525896359,4.586,109.05,108.96,13.7667]
[1644525896560,5.87953092,109.05,108.96,13.7667]
[1644525896957,10.9692,109.04,108.96,13.7667]
[1644525897159,36.84494385,109.02,108.94,56.42517146]
[1644525897358,10.9692,109.0,108.94,70.19397146]
[1644525897557,10.9692,109.0,108.94,24.5588]
[1644525898157,20.5622,109.0,108.94,24.5588]
[1644525898362,26.5622,109.0,108.94,24.5588]
[1644525898559,4.588,108.99,108.94,24.5588]
[1644525898761,36.84494385,108.98,108.94,24.5588]
[1644525899061,45.91494385,108.98,108.88,23.7588]
[1644525899259,45.91494385,108.98,108.86,10.79]
[1644525899460,13.7769,108.96,108.87,45.9158]
[1644525899864,13.7769,108.96,108.86,10.79]
[1644525900061,10.9692,108.95,108.87,37.56037173]
[1644525900262,15.5592,108.95,108.87,37.56037173]
[1644525900562,15.5592,108.95,108.86,10.79]
[1644525900563,39.1256,108.95,108.86,10.79]
[1644525901067,39.1256,108.95,108.83,10.79]
[1644525901261,2.23122154,108.94,108.83,10.79]
[1644525901463,41.43594385,108.93,108.8,10.79]
[1644525901662,41.43594385,108.93,108.81,13.7846]
[1644525901861,2.23122154,108.92,108.81,13.7846]
[1644525902061,4.591,108.91,108.81,13.7846]
[1644525902465,10.9692,108.9,108.81,13.7846]
[1644525902663,13.7866,108.89,108.77,0.024]
[1644525902864,24.3116,108.89,108.78,10.79]
[1644525903064,4.594,108.88,108.78,10.814]
[1644525903467,4.594,108.88,108.78,10.79]
[1644525903665,36.84494385,108.87,108.78,54.78649709]
[1644525903864,36.84494385,108.87,108.78,68.57479709]
[1644525904065,36.84494385,108.87,108.78,24.6023]
[1644525904367,2.23122154,108.86,108.78,0.024]
[1644525904566,18.39522154,108.86,108.74,0.024]
[1644525904770,18.39522154,108.86,108.76,0.024]
[1644525904966,13.7934,108.84,108.75,0.024]
[1644525905166,36.84494385,108.82,108.75,0.024]
[1644525905366,10.9692,108.8,108.74,13.7934]
[1644525905568,10.9692,108.8,108.74,0.024]
[1644525905767,4.596,108.79,108.72,0.024]
[1644525905966,26.4172,108.79,108.7,1.32336495]
[1644525906173,26.4172,108.79,108.7,0.024]
[1644525906367,36.84494385,108.78,108.7,39.42098732]
[1644525906567,13.02122154,108.84,108.7,39.44498732]
[1644525906568,4.598,108.81,108.7,39.44498732]
[1644525906767,4.597,108.83,108.7,52.0344874]
[1644525906966,99.2413,108.85,108.71,0.024]
[1644525907169,24.7928,108.85,108.75,13.7899]
[1644525907374,46.6335,108.86,108.75,24.8539]
[1644525907570,45.36351143,108.85,108.76,37.24168891]
[1644525907769,4.595,108.84,108.76,37.49168891]
[1644525907975,13.7906,108.87,108.76,39.29118899]
[1644525908171,103.707,108.9,108.77,10.79]
[1644525908371,103.707,108.9,108.78,0.024]
[1644525908571,4.593,108.89,108.78,10.814]
[1644525908773,4.593,108.89,108.78,11.064]
[1644525908971,125.2764,108.92,108.79,50.27660037]
[1644525909171,125.2764,108.92,108.8,10.79]
[1644525909471,0.16151654,108.84,108.8,28.04506646]
[1644525909672,0.00151654,108.84,108.83,13.7803]
[1644525909871,0.00151654,108.84,108.83,24.5703]
[1644525910074,0.00151654,108.84,108.81,10.79]
[1644525910274,0.00151654,108.84,108.81,16.79]
[1644525910473,0.00151654,108.84,108.81,10.79]
[1644525910674,0.00151654,108.84,108.8,0.25]
[1644525910874,0.00151654,108.84,108.81,13.7832]
[1644525911077,0.00151654,108.84,108.81,22.7252]
[1644525911281,0.00151654,108.84,108.81,33.7652]
[1644525911574,0.00151654,108.84,108.81,33.5152]
[1644525911775,0.00151654,108.84,108.81,33.7652]
[1644525911974,0.00151654,108.84,108.81,24.8232]
[1644525912176,0.00151654,108.84,108.79,30.5761]
[1644525912375,0.00151654,108.84,108.79,10.79]
[1644525912777,0.00151654,108.84,108.74,0.024]
[1644525912977,0.00151654,108.84,108.73,23.6705]
[1644525912978,0.00151654,108.84,108.78,0.024]
[1644525913179,4.596,108.83,108.75,10.79]
[1644525913377,0.00151654,108.84,108.76,0.024]
[1644525913577,0.00151654,108.84,108.75,13.7918]
[1644525913781,0.00151654,108.84,108.76,0.024]
[1644525913979,4.595,108.83,108.75,0.024]
[1644525914380,36.04546501,108.82,108.75,0.024]
[1644525914579,36.04546501,108.82,108.73,10.814]
[1644525914878,36.04546501,108.82,108.73,10.79]
[1644525915079,36.04546501,108.82,108.73,24.6079]
[1644525915579,24.4483,108.86,108.73,41.61296646]
[1644525915779,6.0,108.86,108.74,0.024]
[1644525915981,76.1352,108.91,108.74,0.024]
[1644525915982,15.385,108.9,108.77,13.7885]
[1644525916182,4.595,108.9,108.78,10.814]
[1644525916382,39.42140334,108.89,108.79,37.90268434]
[1644525916580,39.42140334,108.89,108.8,10.79]
[1644525916781,39.42140334,108.89,108.8,18.682]
[1644525917579,39.42140334,108.89,108.8,18.432]
[1644525917779,39.42140334,108.89,108.8,32.2176]
[1644525918181,76.1352,108.91,108.8,32.4676]
[1644525918381,6.0,108.91,108.8,32.4676]
[1644525918781,6.0,108.91,108.8,38.4676]
[1644525918984,76.7686,108.92,108.8,38.4676]
[1644525919182,118.30484794,108.92,108.8,40.29110008]
[1644525919582,82.7686,108.92,108.8,40.29110008]
[1644525919783,76.7686,108.92,108.8,55.47266646]
[1644525919985,6.0,108.92,108.8,55.47266646]
[1644525920181,28.003,108.93,108.8,55.47266646]
[1644525920382,29.41,108.93,108.8,55.47266646]
[1644525921185,6.0,108.93,108.8,198.7017116]
[1644525921486,4.591,108.95,108.8,198.7017116]
[1644525921487,4.591,108.95,108.85,13.7761]
[1644525921684,120.0294,108.96,108.86,10.79]
[1644525921685,6.0,108.93,108.86,10.79]
[1644525921885,0.03351714,108.97,108.86,12.86350008]
[1644525922184,36.07164725,108.98,108.87,40.44168562]
[1644525922385,0.03351714,108.96,108.88,10.79]
[1644525922586,36.07164725,108.98,108.88,34.0858]
[1644525922787,0.03351714,108.97,108.88,36.15930008]
[1644525922986,0.03351714,108.98,108.88,36.15930008]
[1644525923187,0.03351714,108.99,108.88,42.15930008]
[1644525923386,0.03351714,109.0,108.88,42.15930008]
[1644525923588,0.03351714,109.01,108.88,42.15930008]
[1644525923787,0.03351714,108.99,108.88,192.24086646]
[1644525923991,0.03351714,109.02,108.89,134.9]
[1644525924188,0.03351714,108.99,108.92,13.7642]
[1644525924391,0.03351714,109.01,108.93,10.79]
[1644525924589,0.03351714,109.03,108.93,12.61350008]
[1644525924786,0.03351714,109.04,108.94,48.38473945]
[1644525924987,0.03351714,109.03,108.95,10.79]
[1644525925191,0.03351714,109.04,108.95,36.18300008]
[1644525925387,71.659,109.11,108.95,36.18300008]
[1644525925388,0.03351714,109.06,108.95,185.66204522]
[1644525925587,1.32704806,109.08,108.96,1.82350008]
[1644525925789,0.03351714,109.06,108.97,10.79]
[1644525925988,0.03351714,109.07,108.98,41.63628497]
[1644525926189,1.32704806,109.08,108.99,24.5463]
[1644525926389,4.585,109.07,108.99,24.7963]
[1644525926590,4.585,109.07,108.99,24.5463]
[1644525926789,4.585,109.07,108.99,24.7963]
[1644525927289,4.585,109.07,108.99,30.7963]
[1644525927489,1.32704806,109.1,108.99,29.3813]
[1644525927490,0.03351714,109.08,108.99,29.3813]
[1644525927690,4.61851714,109.09,108.99,46.0033]
[1644525927889,4.61851714,109.09,108.99,41.4183]
[1644525928290,13.66055473,109.08,108.99,24.5463]
[1644525928491,13.66055473,109.08,108.99,10.79]
[1644525928791,16.34076103,109.07,108.89,4.585]
[1644525928996,34.54449419,109.07,108.92,10.79]
[1644525929201,1.29353092,109.05,108.91,10.79]
[1644525929399,38.77410626,109.04,108.93,37.52331444]
[1644525929598,34.18710626,109.04,108.93,37.52331444]
[1644525929995,4.587,109.03,108.93,37.52331444]
[1644525930195,0.03351714,109.03,108.93,37.52331444]
[1644525930396,4.587,109.03,108.93,51.29081444]
[1644525930596,4.62051714,109.03,108.93,51.29081444]
[1644525931195,4.62051714,109.03,108.94,10.79]
[1644525931397,4.587,109.03,108.94,10.79]
[1644525932597,4.587,109.03,108.93,37.52331444]
[1644525932798,127.02173868,109.03,108.93,37.52331444]
[1644525933200,128.3152696,109.03,108.93,37.52331444]
[1644525933803,118.75173868,109.03,108.93,37.52331444]
[1644525934202,137.58454806,109.03,108.93,37.52331444]
[1644525934405,123.81404806,109.03,108.93,37.52331444]
[1644525934604,7.32704806,109.03,108.93,37.77331444]
[1644525934804,6.03351714,109.03,108.93,37.77331444]
[1644525935206,0.03351714,109.03,108.93,37.77331444]
[1644525935406,6.0,109.03,108.93,37.77331444]
[1644525935706,0.03351714,109.03,108.93,51.29091444]
[1644525935906,6.0,109.03,108.93,51.29091444]
[1644525936105,0.03351714,109.03,108.93,51.29091444]
[1644525936507,111.93351714,109.03,108.93,51.29091444]
[1644525936707,111.9,109.03,108.93,51.29091444]
[1644525936909,0.03351714,109.03,108.93,53.36441452]
[1644525937129,6.0,109.03,108.93,51.54091444]